[Event "*** Titled Tuesday Blitz"]
[Site "Chess.com"]
[Date "2020.11.03"]
[Round "8"]
[White "AlexSuv"]
[Black "orestn"]
[Result "1/2-1/2"]
[WhiteElo "2558"]
[BlackElo "2365"]
[TimeControl "180+1"]
[EndTime "11:30:16 PST"]
[Termination "Game drawn by repetition"]

1. d4 {[%clk 0:02:58.6]} 1... d5 {[%clk 0:02:59.3]} 2. c4 {[%clk 0:02:58]} 2...
e6 {[%clk 0:02:59.7]} 3. Nc3 {[%clk 0:02:58.2]} 3... Nf6 {[%clk 0:02:59.6]} 4.
cxd5 {[%clk 0:02:57.5]} 4... exd5 {[%clk 0:02:59.2]} 5. Bg5 {[%clk 0:02:57.3]}
5... c6 {[%clk 0:03:00.1]} 6. e3 {[%clk 0:02:57]} 6... Bf5 {[%clk 0:03:00.7]} 7.
Qf3 {[%clk 0:02:54.9]} 7... Bg6 {[%clk 0:03:01.2]} 8. Bxf6 {[%clk 0:02:54.8]}
8... Qxf6 {[%clk 0:03:01.9]} 9. Qxf6 {[%clk 0:02:54.8]} 9... gxf6 {[%clk
0:03:02.8]} 10. g3 {[%clk 0:02:52.1]} 10... Nd7 {[%clk 0:03:02.4]} 11. Nge2
{[%clk 0:02:51.7]} 11... h5 {[%clk 0:02:59.7]} 12. h4 {[%clk 0:02:51.3]} 12...
Bh6 {[%clk 0:02:59.4]} 13. Bh3 {[%clk 0:02:49]} 13... Nb6 {[%clk 0:02:59.1]} 14.
b3 {[%clk 0:02:47.6]} 14... Nc8 {[%clk 0:02:56.7]} 15. Nf4 {[%clk 0:02:42.1]}
15... Nd6 {[%clk 0:02:48.2]} 16. Nce2 {[%clk 0:02:31.6]} 16... Ke7 {[%clk
0:02:37.5]} 17. O-O {[%clk 0:02:26.5]} 17... a5 {[%clk 0:02:34.2]} 18. a4 {[%clk
0:02:18.6]} 18... Ne4 {[%clk 0:02:23.6]} 19. Rfd1 {[%clk 0:02:12.8]} 19... Rag8
{[%clk 0:02:16]} 20. Rab1 {[%clk 0:02:02.2]} 20... Nd6 {[%clk 0:02:14.7]} 21.
Nxg6+ {[%clk 0:01:57.6]} 21... fxg6 {[%clk 0:02:13.5]} 22. b4 {[%clk 0:01:58.3]}
22... axb4 {[%clk 0:02:11.5]} 23. Rxb4 {[%clk 0:01:59.2]} 23... Ra8 {[%clk
0:02:11.3]} 24. Rdb1 {[%clk 0:01:58.7]} 24... Ra7 {[%clk 0:02:10.3]} 25. Nc3
{[%clk 0:01:48.1]} 25... Rha8 {[%clk 0:02:03.5]} 26. Bf1 {[%clk 0:01:43.8]}
26... f5 {[%clk 0:02:01.7]} 27. Bd3 {[%clk 0:01:41.7]} 27... Kd7 {[%clk
0:01:56.9]} 28. Kf1 {[%clk 0:01:40.8]} 28... Bg7 {[%clk 0:01:52.6]} 29. Ke2
{[%clk 0:01:36.2]} 29... Bf6 {[%clk 0:01:52.8]} 30. R4b3 {[%clk 0:01:32.1]}
30... Bd8 {[%clk 0:01:50.2]} 31. Bc2 {[%clk 0:01:28.1]} 31... Ba5 {[%clk
0:01:45.9]} 32. Nd1 {[%clk 0:01:27]} 32... Bc7 {[%clk 0:01:41]} 33. Nc3 {[%clk
0:01:27]} 33... Ba5 {[%clk 0:01:37.7]} 34. Nd1 {[%clk 0:01:26.4]} 34... Bd8
{[%clk 0:01:36.9]} 35. Nc3 {[%clk 0:01:26.4]} 35... Bc7 {[%clk 0:01:28.8]} 36.
Bd3 {[%clk 0:01:20.5]} 36... Ba5 {[%clk 0:01:22.5]} 37. Nd1 {[%clk 0:01:20]}
37... Bd8 {[%clk 0:01:19.8]} 38. Nc3 {[%clk 0:01:20]} 38... Bc7 {[%clk
0:01:19.2]} 39. R3b2 {[%clk 0:01:15.7]} 39... Ba5 {[%clk 0:01:17.1]} 40. Nd1
{[%clk 0:01:15.6]} 40... Bd8 {[%clk 0:01:16.9]} 41. Nc3 {[%clk 0:01:15.1]} 41...
Ba5 {[%clk 0:01:16.8]} 42. Nd1 {[%clk 0:01:15.4]} 42... Bc7 {[%clk 0:01:16.7]}
43. Nc3 {[%clk 0:01:15.7]} 43... Ba5 {[%clk 0:01:16.6]} 1/2-1/2

[Event "*** Titled Tuesday Blitz"]
[Site "Chess.com"]
[Date "2020.11.03"]
[Round "8"]
[White "DenisQ"]
[Black "TokChess"]
[Result "1-0"]
[WhiteElo "2652"]
[BlackElo "2458"]
[TimeControl "180+1"]
[EndTime "11:30:17 PST"]
[Termination "DenisQ won by resignation"]

1. Nf3 {[%clk 0:03:00.9]} 1... Nf6 {[%clk 0:02:59]} 2. c4 {[%clk 0:03:00.3]}
2... g6 {[%clk 0:02:56.2]} 3. b4 {[%clk 0:02:58.9]} 3... Bg7 {[%clk 0:02:54.3]}
4. Bb2 {[%clk 0:02:58.9]} 4... O-O {[%clk 0:02:54]} 5. g3 {[%clk 0:02:58.5]}
5... d5 {[%clk 0:02:49.5]} 6. cxd5 {[%clk 0:02:57.5]} 6... Nxd5 {[%clk
0:02:50.1]} 7. Bxg7 {[%clk 0:02:56.8]} 7... Kxg7 {[%clk 0:02:51]} 8. Qb3 {[%clk
0:02:56.9]} 8... Be6 {[%clk 0:02:40.8]} 9. Bg2 {[%clk 0:02:56.1]} 9... Nb6
{[%clk 0:02:36.7]} 10. Qb2+ {[%clk 0:02:51.9]} 10... f6 {[%clk 0:02:36.8]} 11.
O-O {[%clk 0:02:50.4]} 11... a5 {[%clk 0:02:27.3]} 12. b5 {[%clk 0:02:48]} 12...
a4 {[%clk 0:02:25]} 13. Na3 {[%clk 0:02:45.5]} 13... Qd6 {[%clk 0:02:18.6]} 14.
Rfc1 {[%clk 0:02:43.4]} 14... N8d7 {[%clk 0:02:18.1]} 15. d3 {[%clk 0:02:34.5]}
15... Rfc8 {[%clk 0:02:16.8]} 16. Rc2 {[%clk 0:02:33.4]} 16... Kg8 {[%clk
0:02:14.1]} 17. Rac1 {[%clk 0:02:31.6]} 17... c5 {[%clk 0:02:05.4]} 18. bxc6
{[%clk 0:02:15.4]} 18... Rxc6 {[%clk 0:02:05.5]} 19. Rxc6 {[%clk 0:02:11.7]}
19... bxc6 {[%clk 0:02:05.8]} 20. Nd2 {[%clk 0:02:11.2]} 20... Rc8 {[%clk
0:01:52.4]} 21. Nac4 {[%clk 0:02:07.6]} 21... Nxc4 {[%clk 0:01:46.8]} 22. Nxc4
{[%clk 0:02:08.5]} 22... Qb8 {[%clk 0:00:46.8]} 23. Qa3 {[%clk 0:02:00.1]} 23...
c5 {[%clk 0:00:37]} 24. Qxa4 {[%clk 0:01:57.5]} 24... Qb4 {[%clk 0:00:37]} 25.
Qa6 {[%clk 0:01:50.6]} 25... Nf8 {[%clk 0:00:21.7]} 26. Bd5 {[%clk 0:01:49.4]}
26... Bxd5 {[%clk 0:00:14.4]} 27. Qxc8 {[%clk 0:01:48.9]} 27... Qa4 {[%clk
0:00:14.5]} 28. Qxc5 {[%clk 0:01:47.3]} 1-0

[Event "*** Titled Tuesday Blitz"]
[Site "Chess.com"]
[Date "2020.11.03"]
[Round "8"]
[White "gilbert_gm"]
[Black "MasterKroket"]
[Result "0-1"]
[WhiteElo "2553"]
[BlackElo "2432"]
[TimeControl "180+1"]
[EndTime "11:30:21 PST"]
[Termination "MasterKroket won by resignation"]

1. e4 {[%clk 0:03:00.9]} 1... c5 {[%clk 0:03:00]} 2. Nf3 {[%clk 0:02:54.1]} 2...
e6 {[%clk 0:03:00]} 3. d4 {[%clk 0:02:47.6]} 3... cxd4 {[%clk 0:03:00.9]} 4.
Nxd4 {[%clk 0:02:48.5]} 4... Nc6 {[%clk 0:03:01.2]} 5. Nc3 {[%clk 0:02:44.1]}
5... Qc7 {[%clk 0:03:01.4]} 6. g3 {[%clk 0:02:42.8]} 6... a6 {[%clk 0:03:01]} 7.
Bg2 {[%clk 0:02:42.7]} 7... Nf6 {[%clk 0:03:00.2]} 8. O-O {[%clk 0:02:42.8]}
8... Nxd4 {[%clk 0:03:00.2]} 9. Qxd4 {[%clk 0:02:42.4]} 9... Bc5 {[%clk
0:03:00.8]} 10. Bf4 {[%clk 0:02:38.5]} 10... d6 {[%clk 0:03:00]} 11. Qd3 {[%clk
0:02:33.9]} 11... Nd7 {[%clk 0:02:58.7]} 12. Rad1 {[%clk 0:02:29.8]} 12... Ne5
{[%clk 0:02:58.4]} 13. Qe2 {[%clk 0:02:20.7]} 13... b5 {[%clk 0:02:52.4]} 14. h4
{[%clk 0:01:50]} 14... Bb7 {[%clk 0:02:47.8]} 15. h5 {[%clk 0:01:49.2]} 15... h6
{[%clk 0:02:48]} 16. Nb1 {[%clk 0:01:44.6]} 16... b4 {[%clk 0:02:37.4]} 17. Nd2
{[%clk 0:01:41.4]} 17... a5 {[%clk 0:02:35.6]} 18. Bxe5 {[%clk 0:01:35.7]} 18...
dxe5 {[%clk 0:02:35.8]} 19. Qg4 {[%clk 0:01:34.6]} 19... O-O {[%clk 0:02:33.1]}
20. Bf3 {[%clk 0:01:21.1]} 20... Bd4 {[%clk 0:02:29.6]} 21. b3 {[%clk 0:01:11]}
21... Ba6 {[%clk 0:02:24.9]} 22. Be2 {[%clk 0:01:06.5]} 22... Bxe2 {[%clk
0:02:16.9]} 23. Qxe2 {[%clk 0:01:07.4]} 23... Qxc2 {[%clk 0:02:17.5]} 24. Qb5
{[%clk 0:00:42.1]} 24... Rfb8 {[%clk 0:02:12.5]} 25. Qa4 {[%clk 0:00:39.2]}
25... Bc3 {[%clk 0:02:10.3]} 26. Nc4 {[%clk 0:00:32.6]} 26... Qxe4 {[%clk
0:02:07.9]} 27. Rd7 {[%clk 0:00:32.5]} 27... Bd4 {[%clk 0:02:02.2]} 28. Rxf7
{[%clk 0:00:27.4]} 28... Qg4 {[%clk 0:01:52.3]} 29. Qd7 {[%clk 0:00:15.8]} 29...
Qxg3+ {[%clk 0:01:51.7]} 30. Kh1 {[%clk 0:00:16.7]} 30... Qh3+ {[%clk
0:01:51.3]} 31. Kg1 {[%clk 0:00:17]} 31... Qg4+ {[%clk 0:01:51.9]} 32. Kh2
{[%clk 0:00:16.3]} 32... Qxh5+ {[%clk 0:01:51.9]} 0-1

[Event "*** Titled Tuesday Blitz"]
[Site "Chess.com"]
[Date "2020.11.03"]
[Round "8"]
[White "sopo-tereladze"]
[Black "PIwan"]
[Result "0-1"]
[WhiteElo "2323"]
[BlackElo "2535"]
[TimeControl "180+1"]
[EndTime "11:30:30 PST"]
[Termination "PIwan won by resignation"]

1. d4 {[%clk 0:03:00.9]} 1... d5 {[%clk 0:02:59.7]} 2. Nf3 {[%clk 0:03:00.7]}
2... Nf6 {[%clk 0:02:59.6]} 3. Bf4 {[%clk 0:03:00.6]} 3... e6 {[%clk 0:02:59.5]}
4. e3 {[%clk 0:03:00.7]} 4... Bd6 {[%clk 0:03:00]} 5. Bd3 {[%clk 0:03:00.6]}
5... c5 {[%clk 0:02:58]} 6. c3 {[%clk 0:02:59.6]} 6... Qc7 {[%clk 0:02:50.1]} 7.
Bxd6 {[%clk 0:02:53.6]} 7... Qxd6 {[%clk 0:02:51]} 8. O-O {[%clk 0:02:53.9]}
8... Nc6 {[%clk 0:02:48.2]} 9. Nbd2 {[%clk 0:02:52.9]} 9... O-O {[%clk
0:02:42.7]} 10. dxc5 {[%clk 0:02:51.9]} 10... Qxc5 {[%clk 0:02:40.5]} 11. e4
{[%clk 0:02:51.9]} 11... e5 {[%clk 0:02:01.8]} 12. Qc2 {[%clk 0:02:26.5]} 12...
Bg4 {[%clk 0:01:57.7]} 13. Rae1 {[%clk 0:02:17.4]} 13... Rad8 {[%clk 0:01:38.9]}
14. h3 {[%clk 0:02:05.6]} 14... Bxf3 {[%clk 0:01:14.4]} 15. Nxf3 {[%clk
0:02:06.5]} 15... dxe4 {[%clk 0:01:13.6]} 16. Bxe4 {[%clk 0:02:06.9]} 16... Nxe4
{[%clk 0:01:13.8]} 17. Qxe4 {[%clk 0:01:57.1]} 17... f5 {[%clk 0:01:12.9]} 18.
Qh4 {[%clk 0:01:41.7]} 18... h6 {[%clk 0:01:02.9]} 19. Re2 {[%clk 0:01:35.1]}
19... e4 {[%clk 0:01:01.2]} 20. Nh2 {[%clk 0:01:27.7]} 20... Ne5 {[%clk
0:00:49.2]} 21. Qh5 {[%clk 0:01:20.9]} 21... Nd3 {[%clk 0:00:44.3]} 22. g4
{[%clk 0:01:00.1]} 22... Nf4 {[%clk 0:00:42.4]} 0-1

[Event "*** Titled Tuesday Blitz"]
[Site "Chess.com"]
[Date "2020.11.03"]
[Round "8"]
[White "lelajavakhishvili"]
[Black "MaxLeto"]
[Result "1-0"]
[WhiteElo "2522"]
[BlackElo "2350"]
[TimeControl "180+1"]
[EndTime "11:30:33 PST"]
[Termination "lelajavakhishvili won by resignation"]

1. d4 {[%clk 0:03:00.9]} 1... Nf6 {[%clk 0:02:53.4]} 2. c4 {[%clk 0:03:00.8]}
2... g6 {[%clk 0:02:52.8]} 3. Nf3 {[%clk 0:02:59.9]} 3... Bg7 {[%clk 0:02:53.1]}
4. g3 {[%clk 0:03:00.2]} 4... d6 {[%clk 0:02:52.4]} 5. Bg2 {[%clk 0:03:00.1]}
5... O-O {[%clk 0:02:52.9]} 6. O-O {[%clk 0:03:00.7]} 6... Nbd7 {[%clk
0:02:47.2]} 7. Nc3 {[%clk 0:03:00.5]} 7... c6 {[%clk 0:02:46.8]} 8. e4 {[%clk
0:02:59.7]} 8... e5 {[%clk 0:02:46.8]} 9. Re1 {[%clk 0:02:58.4]} 9... Qe7 {[%clk
0:02:46]} 10. h3 {[%clk 0:02:56.2]} 10... Rd8 {[%clk 0:02:39.6]} 11. b3 {[%clk
0:02:54.5]} 11... Nf8 {[%clk 0:02:35.1]} 12. Ba3 {[%clk 0:02:52.9]} 12... Qc7
{[%clk 0:01:54.1]} 13. d5 {[%clk 0:02:52.1]} 13... a6 {[%clk 0:01:36.3]} 14. Rc1
{[%clk 0:02:50.7]} 14... c5 {[%clk 0:01:31.1]} 15. Nd2 {[%clk 0:02:45.7]} 15...
b5 {[%clk 0:01:28.7]} 16. b4 {[%clk 0:02:35.8]} 16... cxb4 {[%clk 0:00:39.7]}
17. Bxb4 {[%clk 0:02:34.5]} 17... bxc4 {[%clk 0:00:35.9]} 18. Na4 {[%clk
0:02:26.9]} 18... a5 {[%clk 0:00:33.6]} 19. Rxc4 {[%clk 0:02:22.9]} 19... Qa7
{[%clk 0:00:25.4]} 20. Ba3 {[%clk 0:02:16.3]} 20... Ba6 {[%clk 0:00:24.4]} 21.
Rc1 {[%clk 0:02:10.4]} 21... Ne8 {[%clk 0:00:08.8]} 22. Nc4 {[%clk 0:02:08.1]}
22... Bxc4 {[%clk 0:00:04.3]} 23. Rxc4 {[%clk 0:02:09]} 23... Nd7 {[%clk
0:00:04]} 24. Qc2 {[%clk 0:02:03.7]} 24... Nb6 {[%clk 0:00:02.5]} 25. Nxb6
{[%clk 0:02:03]} 25... Qxb6 {[%clk 0:00:03.4]} 26. Rc6 {[%clk 0:02:03.3]} 26...
Qb5 {[%clk 0:00:03]} 27. Bf1 {[%clk 0:02:01.9]} 27... Qb7 {[%clk 0:00:03.5]} 28.
Rb1 {[%clk 0:02:01.8]} 28... Qa7 {[%clk 0:00:03.6]} 29. Bc1 {[%clk 0:01:53.4]}
29... Rab8 {[%clk 0:00:03]} 30. Be3 {[%clk 0:01:52.4]} 30... Rxb1 {[%clk
0:00:02.9]} 31. Bxa7 {[%clk 0:01:50.1]} 1-0

[Event "*** Titled Tuesday Blitz"]
[Site "Chess.com"]
[Date "2020.11.03"]
[Round "8"]
[White "dretch"]
[Black "Bigfish1995"]
[Result "1-0"]
[WhiteElo "2842"]
[BlackElo "2994"]
[TimeControl "180+1"]
[EndTime "11:30:36 PST"]
[Termination "dretch won on time"]

1. d4 {[%clk 0:03:00.9]} 1... f5 {[%clk 0:02:26.5]} 2. g3 {[%clk 0:02:58.1]}
2... Nf6 {[%clk 0:02:26.4]} 3. Bg2 {[%clk 0:02:58]} 3... e6 {[%clk 0:02:26.7]}
4. Nd2 {[%clk 0:02:50.6]} 4... d5 {[%clk 0:02:26.6]} 5. Nh3 {[%clk 0:02:49.5]}
5... Bd6 {[%clk 0:02:26.2]} 6. c4 {[%clk 0:02:48.2]} 6... O-O {[%clk 0:02:25.7]}
7. O-O {[%clk 0:02:47.1]} 7... c6 {[%clk 0:02:24.9]} 8. Nf3 {[%clk 0:02:46]}
8... dxc4 {[%clk 0:02:16.7]} 9. Qc2 {[%clk 0:02:42.3]} 9... b5 {[%clk
0:02:16.1]} 10. Ne5 {[%clk 0:02:33.2]} 10... Nd5 {[%clk 0:02:14.8]} 11. e4
{[%clk 0:02:27.4]} 11... Nb4 {[%clk 0:02:08.6]} 12. Qc3 {[%clk 0:02:27.4]} 12...
a5 {[%clk 0:01:08.4]} 13. a3 {[%clk 0:02:00.3]} 13... Bxe5 {[%clk 0:00:58.5]}
14. dxe5 {[%clk 0:01:59.5]} 14... Nd3 {[%clk 0:00:38.1]} 15. Nf4 {[%clk
0:01:45.6]} 15... Nxf4 {[%clk 0:00:18.8]} 16. Bxf4 {[%clk 0:01:42.5]} 16... Qe8
{[%clk 0:00:10.8]} 17. Rfd1 {[%clk 0:01:35.6]} 17... Ba6 {[%clk 0:00:08.7]} 18.
Rd6 {[%clk 0:01:31.4]} 18... Ra7 {[%clk 0:00:07]} 19. Qxa5 {[%clk 0:01:24.9]}
19... Nd7 {[%clk 0:00:06.9]} 20. exf5 {[%clk 0:01:22.8]} 20... Nc5 {[%clk
0:00:06.3]} 21. Qb6 {[%clk 0:01:19.9]} 1-0

[Event "*** Titled Tuesday Blitz"]
[Site "Chess.com"]
[Date "2020.11.03"]
[Round "8"]
[White "kot60"]
[Black "monalize"]
[Result "0-1"]
[WhiteElo "2372"]
[BlackElo "2280"]
[TimeControl "180+1"]
[EndTime "11:30:41 PST"]
[Termination "monalize won by resignation"]

1. e4 {[%clk 0:03:00.7]} 1... c5 {[%clk 0:02:58.5]} 2. Nc3 {[%clk 0:03:00.7]}
2... a6 {[%clk 0:02:55.9]} 3. a4 {[%clk 0:02:59.2]} 3... Nc6 {[%clk 0:02:54.4]}
4. Bc4 {[%clk 0:02:59.6]} 4... e6 {[%clk 0:02:50.5]} 5. d3 {[%clk 0:02:59.7]}
5... g6 {[%clk 0:02:50.6]} 6. f4 {[%clk 0:02:58.7]} 6... Bg7 {[%clk 0:02:50.3]}
7. f5 {[%clk 0:02:58.9]} 7... Nge7 {[%clk 0:02:30.4]} 8. fxe6 {[%clk 0:02:58.7]}
8... dxe6 {[%clk 0:02:29.3]} 9. Nge2 {[%clk 0:02:57.1]} 9... O-O {[%clk
0:02:25.1]} 10. O-O {[%clk 0:02:57]} 10... Ne5 {[%clk 0:02:20.2]} 11. Ba2 {[%clk
0:02:55.4]} 11... N7c6 {[%clk 0:02:19.7]} 12. Qe1 {[%clk 0:02:51]} 12... Rb8
{[%clk 0:01:59.8]} 13. Be3 {[%clk 0:02:46.5]} 13... Nd4 {[%clk 0:01:55.9]} 14.
Rc1 {[%clk 0:02:27.8]} 14... b5 {[%clk 0:01:53.8]} 15. axb5 {[%clk 0:02:17.9]}
15... axb5 {[%clk 0:01:52.8]} 16. Bxd4 {[%clk 0:01:49.4]} 16... cxd4 {[%clk
0:01:51.4]} 17. Nd1 {[%clk 0:01:46.9]} 17... Ng4 {[%clk 0:01:42.1]} 18. Qg3
{[%clk 0:01:42.3]} 18... e5 {[%clk 0:01:41.3]} 19. h3 {[%clk 0:01:19.9]} 19...
Nh6 {[%clk 0:01:40.1]} 20. Bb3 {[%clk 0:01:14.6]} 20... Kh8 {[%clk 0:01:37.8]}
21. Nf2 {[%clk 0:01:13.7]} 21... f5 {[%clk 0:01:32.9]} 22. exf5 {[%clk
0:01:08.3]} 22... gxf5 {[%clk 0:01:31.6]} 23. Kh1 {[%clk 0:00:45.6]} 23... Rb6
{[%clk 0:01:30.9]} 24. Qh2 {[%clk 0:00:38.3]} 24... Bb7 {[%clk 0:01:29.6]} 25.
Rg1 {[%clk 0:00:32]} 25... Qg5 {[%clk 0:01:20.6]} 26. Rcd1 {[%clk 0:00:24.2]}
26... Rg6 {[%clk 0:01:17.5]} 27. Rge1 {[%clk 0:00:20.6]} 27... Bxg2+ {[%clk
0:01:13.2]} 0-1

[Event "*** Titled Tuesday Blitz"]
[Site "Chess.com"]
[Date "2020.11.03"]
[Round "8"]
[White "VladimirBugayev"]
[Black "WiktoriaPOL"]
[Result "0-1"]
[WhiteElo "2290"]
[BlackElo "2106"]
[TimeControl "180+1"]
[EndTime "11:30:45 PST"]
[Termination "WiktoriaPOL won by resignation"]

1. e4 {[%clk 0:03:00.9]} 1... c5 {[%clk 0:02:57.7]} 2. Nc3 {[%clk 0:03:00.2]}
2... g6 {[%clk 0:02:55.1]} 3. d4 {[%clk 0:02:54.6]} 3... cxd4 {[%clk 0:02:54.6]}
4. Qxd4 {[%clk 0:02:52.8]} 4... Nf6 {[%clk 0:02:55.1]} 5. Nf3 {[%clk 0:02:51.7]}
5... Nc6 {[%clk 0:02:54.7]} 6. Qa4 {[%clk 0:02:48.9]} 6... d6 {[%clk 0:02:54.5]}
7. e5 {[%clk 0:02:17.7]} 7... dxe5 {[%clk 0:02:53.8]} 8. Nxe5 {[%clk 0:02:17.3]}
8... Bg7 {[%clk 0:02:52.5]} 9. Bb5 {[%clk 0:02:09.8]} 9... O-O {[%clk
0:02:50.5]} 10. Nxc6 {[%clk 0:02:09.6]} 10... bxc6 {[%clk 0:02:50]} 11. Bxc6
{[%clk 0:02:09.9]} 11... Rb8 {[%clk 0:02:49.2]} 12. O-O {[%clk 0:02:01.7]} 12...
Qb6 {[%clk 0:02:47.8]} 13. Bf3 {[%clk 0:01:55.3]} 13... Bf5 {[%clk 0:02:45.5]}
14. h3 {[%clk 0:01:39.7]} 14... Rfd8 {[%clk 0:02:43.9]} 15. Rd1 {[%clk
0:01:29.7]} 15... Rxd1+ {[%clk 0:02:40.8]} 16. Nxd1 {[%clk 0:01:29]} 16... Qc7
{[%clk 0:02:35.8]} 17. c3 {[%clk 0:01:14.7]} 17... Bd7 {[%clk 0:02:34.9]} 18.
Qf4 {[%clk 0:01:02]} 18... Qxf4 {[%clk 0:02:31.2]} 19. Bxf4 {[%clk 0:01:01.2]}
19... Rb6 {[%clk 0:02:29.3]} 20. Be3 {[%clk 0:01:00.8]} 20... Ra6 {[%clk
0:02:28.7]} 21. Bd4 {[%clk 0:00:44.1]} 21... Be6 {[%clk 0:02:27.1]} 22. a4
{[%clk 0:00:37.6]} 22... Bb3 {[%clk 0:02:24.3]} 23. Ne3 {[%clk 0:00:31.4]} 23...
Nd7 {[%clk 0:02:19.2]} 24. Bxg7 {[%clk 0:00:30.3]} 24... Kxg7 {[%clk 0:02:20.1]}
25. a5 {[%clk 0:00:29]} 25... Nc5 {[%clk 0:02:14.1]} 26. Be2 {[%clk 0:00:19.7]}
26... Rd6 {[%clk 0:02:04]} 27. Bc4 {[%clk 0:00:19.4]} 27... Rd2 {[%clk
0:02:00.4]} 28. Ra3 {[%clk 0:00:18.8]} 28... Rxb2 {[%clk 0:01:55.3]} 29. Bxb3
{[%clk 0:00:18.3]} 29... Rxb3 {[%clk 0:01:55.4]} 30. Rxb3 {[%clk 0:00:17]} 30...
Nxb3 {[%clk 0:01:56.3]} 31. Nd5 {[%clk 0:00:16.6]} 31... e6 {[%clk 0:01:53.2]}
32. a6 {[%clk 0:00:16.1]} 32... exd5 {[%clk 0:01:51.4]} 33. Kf1 {[%clk
0:00:15.3]} 33... Nc5 {[%clk 0:01:51.6]} 34. Ke2 {[%clk 0:00:16]} 34... Nxa6
{[%clk 0:01:52]} 35. Ke3 {[%clk 0:00:16.8]} 35... Nc7 {[%clk 0:01:52.3]} 36. Kd4
{[%clk 0:00:17.6]} 36... Kf6 {[%clk 0:01:48.1]} 37. Kc5 {[%clk 0:00:17.8]} 37...
Ke6 {[%clk 0:01:48.5]} 38. Kc6 {[%clk 0:00:18.1]} 38... Ne8 {[%clk 0:01:47.9]}
39. Kb5 {[%clk 0:00:16.5]} 39... Nd6+ {[%clk 0:01:47.3]} 40. Ka6 {[%clk
0:00:16.6]} 40... Ne4 {[%clk 0:01:47.4]} 41. Kxa7 {[%clk 0:00:15.5]} 41... Nxc3
{[%clk 0:01:47.7]} 42. Kb6 {[%clk 0:00:16.4]} 42... d4 {[%clk 0:01:48.1]} 43.
Kc5 {[%clk 0:00:17.3]} 43... d3 {[%clk 0:01:48.8]} 44. Kc4 {[%clk 0:00:17.7]}
44... d2 {[%clk 0:01:49.4]} 0-1

[Event "*** Titled Tuesday Blitz"]
[Site "Chess.com"]
[Date "2020.11.03"]
[Round "8"]
[White "MarkoPe"]
[Black "tk22h"]
[Result "1/2-1/2"]
[WhiteElo "2237"]
[BlackElo "2370"]
[TimeControl "180+1"]
[EndTime "11:30:47 PST"]
[Termination "Game drawn by agreement"]

1. c4 {[%clk 0:03:00.9]} 1... e5 {[%clk 0:02:58.6]} 2. g3 {[%clk 0:03:00.5]}
2... Nc6 {[%clk 0:02:57.9]} 3. Bg2 {[%clk 0:02:57.2]} 3... g6 {[%clk 0:02:55.4]}
4. Nc3 {[%clk 0:02:55.3]} 4... Bg7 {[%clk 0:02:54.1]} 5. e4 {[%clk 0:02:54.1]}
5... d6 {[%clk 0:02:38]} 6. Nge2 {[%clk 0:02:53.4]} 6... Nge7 {[%clk 0:02:35.2]}
7. d3 {[%clk 0:02:52.2]} 7... O-O {[%clk 0:02:34.6]} 8. O-O {[%clk 0:02:48.7]}
8... Be6 {[%clk 0:02:24.8]} 9. Bg5 {[%clk 0:02:47]} 9... Qd7 {[%clk 0:02:22.1]}
10. Rc1 {[%clk 0:02:40.1]} 10... h6 {[%clk 0:02:20.2]} 11. Be3 {[%clk
0:02:38.2]} 11... f5 {[%clk 0:02:07]} 12. Qd2 {[%clk 0:02:32.6]} 12... Kh7
{[%clk 0:02:06.1]} 13. Nd5 {[%clk 0:02:32.8]} 13... Rf7 {[%clk 0:02:05.7]} 14.
f3 {[%clk 0:02:25.4]} 14... Raf8 {[%clk 0:02:05.1]} 15. b4 {[%clk 0:02:21.1]}
15... b6 {[%clk 0:02:02.3]} 16. a4 {[%clk 0:01:55.8]} 16... Nd4 {[%clk
0:01:59.4]} 17. Bxd4 {[%clk 0:01:49.9]} 17... exd4 {[%clk 0:01:59.3]} 18. Nef4
{[%clk 0:01:34.9]} 18... c5 {[%clk 0:01:55.5]} 19. Nxe6 {[%clk 0:01:29.2]} 19...
Qxe6 {[%clk 0:01:55.2]} 20. a5 {[%clk 0:01:22.4]} 20... Nxd5 {[%clk 0:01:51.9]}
21. cxd5 {[%clk 0:01:19.2]} 21... Qd7 {[%clk 0:01:48.9]} 22. axb6 {[%clk
0:01:19.2]} 22... axb6 {[%clk 0:01:48.6]} 23. Ra1 {[%clk 0:01:13.5]} 23... fxe4
{[%clk 0:01:47.8]} 24. fxe4 {[%clk 0:01:13]} 24... Rxf1+ {[%clk 0:01:46.7]} 25.
Bxf1 {[%clk 0:01:11.9]} 25... Qf7 {[%clk 0:01:43.1]} 26. Bh3 {[%clk 0:01:04.5]}
26... h5 {[%clk 0:01:40.6]} 27. Be6 {[%clk 0:00:50]} 27... Qe7 {[%clk
0:01:37.1]} 28. bxc5 {[%clk 0:00:40.9]} 28... bxc5 {[%clk 0:01:33.5]} 29. Rf1
{[%clk 0:00:29.5]} 29... Bh6 {[%clk 0:01:32.1]} 30. Qe2 {[%clk 0:00:29.7]} 30...
Be3+ {[%clk 0:01:31.4]} 31. Kg2 {[%clk 0:00:30]} 31... Rf6 {[%clk 0:01:29.1]}
32. Rxf6 {[%clk 0:00:27.6]} 32... Qxf6 {[%clk 0:01:29.2]} 33. Qf3 {[%clk
0:00:27.9]} 33... Qxf3+ {[%clk 0:01:26.8]} 34. Kxf3 {[%clk 0:00:27.8]} 34... Kg7
{[%clk 0:01:26.9]} 35. Bd7 {[%clk 0:00:22.4]} 35... Kf6 {[%clk 0:01:26.4]} 36.
Bb5 {[%clk 0:00:22.2]} 1/2-1/2

[Event "*** Titled Tuesday Blitz"]
[Site "Chess.com"]
[Date "2020.11.03"]
[Round "8"]
[White "Igor_Lysyj"]
[Black "ArjunErigaisi2003"]
[Result "1-0"]
[WhiteElo "2847"]
[BlackElo "2973"]
[TimeControl "180+1"]
[EndTime "11:30:48 PST"]
[Termination "Igor_Lysyj won by resignation"]

1. d4 {[%clk 0:03:00.9]} 1... Nf6 {[%clk 0:02:59.8]} 2. c4 {[%clk 0:03:00.6]}
2... g6 {[%clk 0:02:58.1]} 3. Nc3 {[%clk 0:02:59.5]} 3... d5 {[%clk 0:02:58.4]}
4. cxd5 {[%clk 0:02:58.3]} 4... Nxd5 {[%clk 0:02:59.3]} 5. e4 {[%clk 0:02:58.1]}
5... Nxc3 {[%clk 0:02:59.4]} 6. bxc3 {[%clk 0:02:58.1]} 6... Bg7 {[%clk
0:03:00.3]} 7. Bg5 {[%clk 0:02:58.2]} 7... c5 {[%clk 0:02:51.4]} 8. Rc1 {[%clk
0:02:57.9]} 8... O-O {[%clk 0:02:35.6]} 9. Nf3 {[%clk 0:02:57.1]} 9... cxd4
{[%clk 0:02:31.1]} 10. cxd4 {[%clk 0:02:56.2]} 10... Bg4 {[%clk 0:02:31.7]} 11.
d5 {[%clk 0:02:55.4]} 11... f5 {[%clk 0:02:16.5]} 12. Qb3 {[%clk 0:02:50.1]}
12... Kh8 {[%clk 0:01:58.2]} 13. Qxb7 {[%clk 0:02:42.5]} 13... fxe4 {[%clk
0:01:54.9]} 14. Nd2 {[%clk 0:02:25]} 14... Nd7 {[%clk 0:01:47.5]} 15. d6 {[%clk
0:02:21.8]} 15... Bd4 {[%clk 0:01:41.6]} 16. Nxe4 {[%clk 0:02:14.5]} 16... Rxf2
{[%clk 0:01:02.5]} 17. Qb4 {[%clk 0:01:24.8]} 17... Bb6 {[%clk 0:00:23.9]} 18.
dxe7 {[%clk 0:01:17.3]} 18... Qg8 {[%clk 0:00:18.1]} 19. Qc3+ {[%clk 0:01:02.5]}
19... Qg7 {[%clk 0:00:18.6]} 20. Qxg7+ {[%clk 0:00:59.4]} 20... Kxg7 {[%clk
0:00:19.5]} 21. Nxf2 {[%clk 0:00:59.3]} 21... Ba5+ {[%clk 0:00:20.4]} 22. Bd2
{[%clk 0:00:58.6]} 1-0